bitfinex/quotes_SOLUSD_20240808
["timestamp","ask_amount","ask_price","bid_price","bid_amount"]
[1723136202732,23.0007,159.59,159.5,20.0]
[1723136203943,23.0007,159.59,159.5,21.02234662]
[1723136204123,23.0007,159.59,159.51,45.0]
[1723136204325,23.0007,159.59,159.52,20.0]
[1723136205021,23.0007,159.59,159.47,21.25334972]
[1723136205239,23.0007,159.59,159.48,45.0]
[1723136205542,23.0007,159.59,159.49,20.0]
[1723136205738,23.0007,159.59,159.5,45.0]
[1723136205944,23.0007,159.59,159.51,20.0]
[1723136206946,1.48586595,159.58,159.47,20.0]
[1723136207149,23.0007,159.59,159.46,20.0]
[1723136207315,23.0007,159.59,159.47,45.0]
[1723136207517,23.0007,159.59,159.48,20.0]
[1723136207750,23.0007,159.59,159.49,46.25343656]
[1723136207955,23.0007,159.59,159.5,20.0]
[1723136209741,23.0007,159.59,159.51,46.25343666]
[1723136209950,23.0007,159.59,159.51,45.0]
[1723136210150,23.0007,159.59,159.52,20.0]
[1723136211975,257.0,159.65,159.53,45.0]
[1723136212138,257.0,159.65,159.54,21.2529579]
[1723136212341,257.0,159.65,159.55,46.25293254]
[1723136212561,263.2608,159.73,159.56,20.0]
[1723136212872,263.2608,159.73,159.54,20.0]
[1723136212873,1.48586595,159.72,159.54,20.0]
[1723136213056,263.54402746,159.73,159.53,21.25306945]
[1723136213057,6.2616,159.71,159.53,21.25306945]
[1723136213246,269.80462746,159.73,159.53,23.74996136]
[1723136213568,263.2606,159.73,159.54,45.0]
[1723136213762,45.0,159.72,159.56,20.0]
[1723136213954,45.0,159.72,159.57,1.25293983]
[1723136214151,257.0,159.73,159.58,1.25293991]
[1723136214363,263.2607,159.73,159.56,20.0]
[1723136214670,263.2607,159.73,159.55,21.25286895]
[1723136214855,6.3898,159.71,159.56,45.0]
[1723136215057,16.4982,159.7,159.57,20.0]
[1723136215666,45.0,159.69,159.57,20.0]
[1723136217446,45.0,159.69,159.58,1.25287074]
[1723136217640,45.0,159.69,159.57,20.0]
[1723136218155,45.0,159.69,159.57,22.4872636]
[1723136218365,6.6282,159.67,159.52,20.0]
[1723136218667,6.6282,159.67,159.51,44.11]
[1723136218668,15.7326,159.65,159.51,44.11]
[1723136218856,1.48586595,159.64,159.51,46.65222655]
[1723136219181,45.0,159.64,159.51,46.65222655]
[1723136219365,46.48586595,159.64,159.51,46.65222655]
[1723136219589,6.6282,159.67,159.52,26.54424328]
[1723136219738,6.6282,159.67,159.58,53.88]
[1723136219943,6.6282,159.67,159.59,1.25258645]
[1723136220156,6.6282,159.67,159.59,21.25258645]
[1723136220347,6.6282,159.67,159.59,1.25258645]
[1723136220641,6.6282,159.67,159.56,21.25260883]
[1723136220840,6.6282,159.67,159.52,6.54386285]
[1723136221040,16.3295,159.66,159.51,6.53251432]
[1723136221854,45.0,159.65,159.51,6.53251432]
[1723136222768,45.0,159.65,159.52,1.25320216]
[1723136222973,45.0,159.65,159.52,20.0]
[1723136222974,1.48586595,159.64,159.52,20.0]
[1723136223178,45.0,159.65,159.52,20.0]
[1723136223658,16.3295,159.66,159.55,20.0]
[1723136223978,16.3295,159.66,159.53,20.0]
[1723136224182,16.3295,159.66,159.54,20.0]
[1723136224357,16.3295,159.66,159.55,1.25298805]
[1723136224972,16.3295,159.66,159.54,20.0]
[1723136225507,17.81536595,159.66,159.51,26.53251432]
[1723136225659,45.0,159.65,159.51,26.53251432]
[1723136226772,1.48586595,159.64,159.52,20.0]
[1723136227163,45.0,159.65,159.52,20.0]
[1723136227370,45.0,159.65,159.52,21.25326346]
[1723136227789,45.0,159.65,159.52,20.0]
[1723136228203,16.3295,159.66,159.52,20.0]
[1723136229671,45.0,159.65,159.52,20.0]
[1723136230584,45.0,159.65,159.51,27.79049608]
[1723136230805,6.4538,159.62,159.51,6.53722157]
[1723136231103,6.0709,159.6,159.41,20.0]
[1723136231274,46.48586595,159.59,159.47,6.53499305]
[1723136231471,46.48586595,159.59,159.41,20.0]
[1723136231890,16.341,159.58,159.47,6.53552117]
[1723136232194,6.6357,159.56,159.4,12.84831617]
[1723136232403,1.48586595,159.55,159.47,6.53577065]
[1723136232606,45.0,159.55,159.4,5.07590603]
[1723136232771,45.0,159.55,159.47,6.53554838]
[1723136232968,46.48586595,159.55,159.47,6.53554838]
[1723136233192,45.0,159.55,159.4,3.82190309]
[1723136233403,45.0,159.55,159.46,6.5355487]
[1723136233591,45.0,159.55,159.4,3.82190309]
[1723136233783,45.0,159.55,159.4,20.0]
[1723136233985,45.0,159.55,159.46,6.5326039]
[1723136234184,45.0,159.55,159.47,20.0]
[1723136234780,45.0,159.55,159.45,20.0]
[1723136235201,6.6357,159.56,159.45,20.0]
[1723136235403,6.6357,159.56,159.46,1.25391485]
[1723136235611,6.6357,159.56,159.46,46.2536151]
[1723136235904,6.6357,159.56,159.47,20.0]
[1723136236102,6.6357,159.56,159.48,1.25352091]
[1723136236312,6.6357,159.56,159.49,21.25352108]
[1723136236480,16.341,159.58,159.5,20.0]
[1723136236680,16.341,159.58,159.51,1.25330204]
[1723136236880,16.341,159.58,159.52,1.25330138]
[1723136237290,16.341,159.58,159.5,20.0]
[1723136237910,16.341,159.58,159.47,20.0]
[1723136240492,6.109,159.61,159.49,20.0]
[1723136240695,6.109,159.61,159.51,20.0]
[1723136240910,6.109,159.61,159.52,21.25313708]
[1723136241220,6.109,159.61,159.53,65.0]
[1723136241510,6.109,159.61,159.54,21.25303255]
[1723136241742,6.109,159.61,159.55,1.25302733]
[1723136242018,6.109,159.61,159.54,64.11]
[1723136242306,6.109,159.61,159.55,1.25309708]
[1723136242803,16.1951,159.63,159.55,46.25309708]
[1723136242991,16.1951,159.63,159.56,20.0]
[1723136243193,16.1951,159.63,159.54,64.11]
[1723136243388,16.1951,159.63,159.55,1.25300561]
[1723136243582,16.1951,159.63,159.55,46.25300561]
[1723136243789,16.1951,159.63,159.56,20.0]
[1723136244398,6.2327,159.65,159.57,20.0]
[1723136244581,6.2327,159.65,159.58,21.25279302]
[1723136244979,6.2327,159.65,159.58,20.0]
[1723136245289,6.2327,159.65,159.56,20.0]
[1723136245494,6.2327,159.65,159.55,20.0]
[1723136246198,6.2327,159.65,159.55,21.25296482]
[1723136246717,6.2327,159.65,159.55,20.0]
[1723136247012,45.0,159.64,159.55,20.0]
[1723136247215,1.48586595,159.63,159.54,44.11]
[1723136247401,45.0,159.64,159.54,44.11]
[1723136248599,6.2327,159.65,159.55,20.0]
[1723136249214,45.0,159.64,159.55,20.0]
[1723136249914,45.0,159.64,159.52,1.25323431]
[1723136250221,45.0,159.64,159.5,44.11]
[1723136250525,45.0,159.64,159.51,1.25341198]
[1723136250898,45.0,159.64,159.52,1.25341456]
[1723136251310,6.2327,159.65,159.53,1.25300552]
[1723136251515,6.2327,159.65,159.54,44.11]
[1723136251716,6.2327,159.65,159.55,20.0]
[1723136253318,6.2327,159.65,159.56,1.25305379]
[1723136253521,6.2327,159.65,159.55,20.0]
[1723136253835,45.0,159.64,159.55,20.0]
[1723136254209,1.48586595,159.63,159.55,20.0]
[1723136254429,45.0,159.64,159.55,20.0]
[1723136256027,6.2327,159.65,159.55,20.0]
[1723136256221,45.0,159.64,159.55,20.0]
[1723136257799,1.48586595,159.63,159.51,6.54239472]
[1723136257998,45.0,159.64,159.51,6.54239472]
[1723136258400,45.0,159.64,159.51,9.04665673]
[1723136258607,45.0,159.64,159.51,10.30002857]
[1723136259327,45.0,159.64,159.52,20.0]
[1723136259833,45.0,159.64,159.53,1.25328152]
[1723136260025,45.0,159.64,159.52,40.0]
[1723136260525,45.0,159.64,159.52,20.0]
[1723136261327,45.0,159.64,159.52,21.25335782]
[1723136261537,45.0,159.64,159.53,65.0]
[1723136261822,45.0,159.64,159.54,65.36308564]
[1723136262029,45.0,159.64,159.51,9.04665673]
[1723136262719,1.48586595,159.63,159.51,9.04665673]
[1723136262922,45.0,159.64,159.51,9.04665673]
[1723136263302,6.2654,159.61,159.51,6.54239472]
[1723136263636,6.4396,159.58,159.42,0.8297]
[1723136263803,46.48586595,159.57,159.42,0.8297]
[1723136264006,16.1386,159.56,159.45,6.54040551]
[1723136264204,16.1386,159.56,159.42,0.8297]
[1723136264205,46.48586595,159.55,159.42,0.8297]
[1723136264429,7.92546595,159.54,159.43,6.54011167]
[1723136264621,45.0,159.53,159.43,6.54011167]
[1723136264823,1.48586595,159.52,159.43,6.54011167]
[1723136265126,1.48586595,159.51,159.43,6.54011167]
[1723136265303,1.48586595,159.51,159.44,20.0]
[1723136265711,22.5782,159.49,159.43,6.54011167]
[1723136265907,46.48586595,159.48,159.42,0.8297]
[1723136266712,45.0,159.48,159.42,0.8297]
[1723136268422,22.5782,159.49,159.42,0.8297]
[1723136269141,16.296,159.53,159.45,44.11]
[1723136269342,16.296,159.53,159.46,20.0]
[1723136271018,257.0,159.62,159.47,1.25373619]
[1723136271019,22.3879,159.58,159.47,1.25373619]
[1723136271427,22.3879,159.58,159.47,46.25373619]
[1723136271628,22.3879,159.58,159.48,20.0]
[1723136271819,1.48586595,159.57,159.48,20.0]
[1723136272222,1.48586595,159.57,159.42,0.8297]
[1723136272938,46.48586595,159.57,159.42,0.8297]
[1723136273436,28.1293,159.56,159.42,0.8297]
[1723136273626,46.48586595,159.57,159.42,0.8297]
[1723136273627,6.4543,159.52,159.42,0.8297]
[1723136273833,46.48586595,159.51,159.42,0.8297]
[1723136274036,16.5141,159.5,159.42,0.8297]
[1723136274339,6.4922,159.48,159.42,0.8297]
[1723136274520,45.0,159.47,159.42,0.8297]
[1723136275929,1.48586595,159.46,159.42,0.8297]
[1723136276249,45.0,159.47,159.42,0.8297]
[1723136277738,45.0,159.47,159.37,6.54637672]
[1723136277739,16.6222,159.45,159.38,20.0]
[1723136277932,46.48586595,159.44,159.38,20.0]
[1723136278129,45.0,159.44,159.38,20.0]
[1723136278330,45.0,159.44,159.35,6.54750379]
[1723136278532,45.0,159.44,159.36,20.0]
[1723136279267,16.6222,159.45,159.36,20.0]
[1723136279423,18.10806595,159.45,159.36,20.0]
[1723136280324,16.6222,159.45,159.36,20.0]
[1723136281133,16.6222,159.45,159.36,65.36456592]
[1723136281653,6.4922,159.48,159.36,65.36456592]
[1723136281822,6.4922,159.48,159.36,20.0]
[1723136282022,1.48586595,159.47,159.36,20.0]
[1723136282243,6.4922,159.48,159.36,21.2547316]
[1723136282430,6.4922,159.48,159.37,44.11]
[1723136282633,6.4922,159.48,159.38,20.0]
[1723136283047,6.4922,159.48,159.38,21.25442403]
[1723136283429,6.4922,159.48,159.38,20.0]
[1723136283747,22.4611,159.53,159.39,27.79865351]
[1723136283948,22.4611,159.53,159.4,20.0]
[1723136284125,1.48586595,159.52,159.4,20.0]
[1723136284519,22.4611,159.53,159.44,44.11]
[1723136284749,23.0957,159.57,159.45,21.25382502]
[1723136284959,23.0957,159.57,159.45,20.0]
[1723136285324,23.0957,159.57,159.46,1.25385253]
[1723136285728,16.6359,159.57,159.48,44.11]
[1723136285934,280.0957,159.61,159.49,21.25347458]
[1723136286425,23.0957,159.61,159.49,21.25347458]
[1723136286952,23.0957,159.61,159.49,20.0]
[1723136287329,23.0957,159.61,159.5,46.25330471]
[1723136287529,16.6359,159.61,159.51,20.0]
[1723136288228,16.6359,159.61,159.5,20.0]
[1723136288442,16.6359,159.61,159.49,20.0]
[1723136288735,45.0,159.6,159.49,20.0]
[1723136290048,16.6359,159.61,159.5,1.25347711]
[1723136290549,16.6359,159.61,159.5,46.25347711]
[1723136290746,45.0,159.6,159.51,20.0]
[1723136291061,45.0,159.6,159.44,50.2916]
[1723136291062,1.48586595,159.59,159.44,50.2916]
[1723136291767,45.0,159.6,159.44,50.2916]
[1723136292142,45.0,159.6,159.45,1.25359427]
[1723136292350,16.6359,159.61,159.48,44.11]
[1723136292531,16.6359,159.61,159.49,21.25332853]
[1723136292730,16.6359,159.61,159.49,41.25332853]
[1723136292960,16.6359,159.61,159.49,40.0]
[1723136293136,1.48586595,159.6,159.49,20.0]
[1723136293750,1.48586595,159.6,159.45,20.0]
[1723136293959,46.48586595,159.6,159.45,20.0]
[1723136294330,45.0,159.6,159.45,20.0]
[1723136294942,45.0,159.6,159.46,1.25360396]
[1723136295145,45.0,159.6,159.46,46.25360396]
[1723136295455,45.0,159.6,159.47,20.0]
[1723136295649,45.0,159.6,159.46,46.25360396]
[1723136295650,46.48586595,159.6,159.46,45.0]
[1723136295841,46.48586595,159.6,159.45,45.0]
[1723136296037,45.0,159.6,159.45,45.0]
[1723136296244,45.0,159.6,159.46,1.25364866]
[1723136296555,1.48586595,159.59,159.45,45.0]
[1723136296853,6.6042,159.58,159.41,6.54694344]
[1723136297057,16.0226,159.56,159.41,6.54694344]
[1723136297238,46.48586595,159.55,159.41,6.54694344]
[1723136297549,6.4936,159.54,159.41,6.54694344]
[1723136297751,46.48586595,159.53,159.41,6.54694344]
[1723136297948,45.0,159.53,159.41,6.54694344]
[1723136298840,6.4936,159.54,159.42,65.0]
[1723136299241,45.0,159.53,159.42,20.0]
[1723136299461,16.3749,159.51,159.41,6.54366373]
[1723136299770,45.0,159.5,159.41,6.54366373]
[1723136300238,16.3749,159.51,159.42,1.2542292]
[1723136300438,16.3749,159.51,159.41,6.54366373]
[1723136300866,16.3749,159.51,159.42,20.0]
[1723136301641,45.0,159.5,159.42,20.0]
[1723136301841,46.48586595,159.5,159.42,20.0]
[1723136302261,46.48586595,159.5,159.41,6.54366373]
[1723136302769,45.0,159.5,159.41,6.54366373]
[1723136302975,16.3749,159.51,159.41,6.54366373]
[1723136303343,45.0,159.5,159.41,6.54366373]
[1723136303541,45.0,159.5,159.42,20.0]
[1723136303958,1.48586595,159.49,159.42,20.0]
[1723136304144,45.0,159.49,159.42,20.0]
[1723136304352,16.3749,159.51,159.42,20.0]
[1723136304548,45.0,159.5,159.42,20.0]
[1723136305468,46.48586595,159.5,159.42,20.0]
[1723136306854,45.0,159.5,159.42,20.0]
[1723136307168,6.3673,159.48,159.41,6.54366373]
[1723136307367,46.48586595,159.47,159.41,6.54366373]
[1723136307580,45.0,159.47,159.41,6.54366373]
[1723136307748,45.0,159.47,159.36,2.5041815]
[1723136308066,45.0,159.47,159.4,6.54216203]
[1723136308267,45.0,159.47,159.33,1.25468577]
[1723136308579,45.0,159.47,159.38,6.54207324]
[1723136308772,45.0,159.47,159.39,20.0]
[1723136308977,45.0,159.47,159.38,6.5420874]
[1723136309291,45.0,159.47,159.39,20.0]
[1723136309649,1.48586595,159.46,159.39,20.0]
[1723136310079,45.0,159.47,159.39,20.0]
[1723136310442,6.3673,159.48,159.39,20.0]
[1723136311948,45.0,159.47,159.39,20.0]
[1723136312761,6.3673,159.48,159.39,20.0]
[1723136313660,1.48586595,159.47,159.39,20.0]
[1723136314265,46.48586595,159.47,159.39,20.0]
[1723136317266,87.15676595,159.47,159.39,20.0]
[1723136317581,34.4,159.43,159.3,34.4]
[1723136317750,46.48586595,159.42,159.3,34.4]
[1723136317953,45.0,159.42,159.31,6.54066303]
[1723136318180,46.48586595,159.42,159.31,6.54066303]
[1723136318353,45.0,159.42,159.32,34.4]
[1723136318557,45.0,159.43,159.32,34.4]
[1723136318954,45.0,159.43,159.33,20.0]
[1723136319678,1.48586595,159.42,159.33,20.0]
[1723136320060,45.0,159.43,159.34,34.4]
[1723136320256,45.0,159.43,159.35,20.0]
[1723136321885,45.0,159.43,159.36,34.4]
[1723136322058,45.0,159.43,159.37,20.0]
[1723136322885,16.0431,159.44,159.37,20.0]
[1723136323057,22.8058,159.48,159.38,34.4]
[1723136323390,22.8058,159.48,159.4,34.4]
[1723136323576,22.8058,159.48,159.41,21.2544463]
[1723136324062,16.4385,159.48,159.42,34.4]
[1723136324261,6.5522,159.52,159.43,20.0]
[1723136324964,34.4,159.51,159.41,20.0]
[1723136325164,40.6694,159.51,159.41,20.0]
[1723136325395,40.6694,159.51,159.39,20.0]
[1723136325396,34.4,159.51,159.39,20.0]
[1723136325682,46.48586595,159.5,159.39,20.0]
[1723136325988,34.4,159.49,159.39,20.0]
[1723136326170,34.4,159.47,159.37,20.0]
[1723136326367,1.48586595,159.46,159.37,20.0]
[1723136326689,45.0,159.46,159.37,20.0]
[1723136327382,1.48586595,159.51,159.38,34.4]
[1723136327587,47.2211,159.52,159.39,20.0]
[1723136327793,6.2692,159.51,159.39,20.0]
[1723136327995,34.4,159.49,159.39,20.0]
[1723136328785,45.0,159.48,159.39,20.0]
[1723136328989,6.5522,159.52,159.4,34.4]
[1723136329188,6.5522,159.52,159.41,20.0]
[1723136329360,8.03806595,159.52,159.41,20.0]
[1723136329565,6.5522,159.52,159.41,20.0]
[1723136329766,1.48586595,159.51,159.41,20.0]
[1723136329978,6.5522,159.52,159.41,20.0]
[1723136330786,45.0,159.51,159.41,20.0]
[1723136330967,6.5522,159.52,159.42,35.6543315]
[1723136331177,6.5522,159.52,159.43,20.0]
[1723136332089,34.4,159.49,159.36,34.4]
[1723136332262,46.48586595,159.48,159.37,20.0]
[1723136332874,46.48586595,159.48,159.36,34.4]
[1723136333388,34.4,159.47,159.34,34.4]
[1723136333593,46.48586595,159.46,159.34,34.4]
[1723136333775,34.4,159.41,159.33,6.52910708]
[1723136333978,34.4,159.41,159.29,15.3534]
[1723136333979,45.0,159.4,159.29,15.3534]
[1723136334489,45.0,159.4,159.31,6.52534914]
[1723136335196,46.48586595,159.4,159.31,6.52534914]
[1723136335393,1.48586595,159.39,159.31,6.52534914]
[1723136335899,1.48586595,159.39,159.28,40.8601]
[1723136335900,1.48586595,159.39,159.28,6.4601]
[1723136336103,45.0,159.4,159.3,6.5260808]
[1723136337978,45.0,159.41,159.3,6.5260808]
[1723136338179,45.0,159.41,159.31,20.0]
[1723136338374,1.48586595,159.4,159.31,20.0]
[1723136338683,45.0,159.41,159.31,20.0]
[1723136338899,45.0,159.41,159.3,6.52900606]
[1723136339098,45.0,159.41,159.31,20.0]
[1723136339480,46.48586595,159.41,159.31,20.0]
[1723136340020,45.0,159.41,159.31,20.0]
[1723136340184,1.48586595,159.4,159.31,20.0]
[1723136340382,45.0,159.41,159.31,20.0]
[1723136341682,1.48586595,159.4,159.3,6.55055844]
[1723136341885,50.525,159.44,159.31,20.0]
[1723136342084,1.48586595,159.43,159.31,20.0]
[1723136342293,1.48586595,159.42,159.31,20.0]
[1723136343209,1.48586595,159.41,159.31,20.0]
[1723136343605,45.0,159.43,159.29,20.0]
[1723136343785,6.2727,159.42,159.29,20.0]
[1723136343985,45.0,159.41,159.3,1.25529335]
[1723136344186,45.0,159.43,159.3,1.25529335]
[1723136344495,51.2724,159.43,159.29,20.0]
[1723136345007,50.525,159.44,159.29,20.0]
[1723136345206,1.48586595,159.43,159.29,20.0]
[1723136345387,6.245,159.44,159.3,45.0]
[1723136345588,6.245,159.44,159.31,21.25486273]
[1723136346479,6.245,159.44,159.31,20.0]
[1723136346681,6.245,159.44,159.32,45.0]
[1723136346878,6.245,159.44,159.33,20.0]
[1723136347489,1.48586595,159.43,159.29,20.0]
[1723136347808,6.245,159.44,159.29,21.25488152]
[1723136348186,6.245,159.44,159.29,20.0]
[1723136348589,45.0,159.43,159.3,1.25489801]
[1723136349407,45.0,159.43,159.3,46.25489801]
[1723136349710,45.0,159.43,159.31,20.0]
[1723136350017,6.245,159.44,159.32,46.25476741]
[1723136350183,6.245,159.44,159.33,20.0]
[1723136351112,7.73086595,159.44,159.33,36.5734]
[1723136351305,45.0,159.43,159.33,36.5734]
[1723136351496,15.565,159.45,159.34,1.25489216]
[1723136351693,6.1841,159.48,159.35,6.5861]
[1723136351915,6.1841,159.48,159.36,20.0]
[1723136353501,6.1841,159.48,159.37,1.25471048]
[1723136353711,45.0,159.47,159.37,1.25471048]
[1723136354405,45.0,159.47,159.36,20.0]
[1723136355306,46.48586595,159.47,159.36,20.0]
[1723136355820,80.89586595,159.47,159.36,20.0]
[1723136356316,34.41,159.45,159.35,20.0]
[1723136356618,45.0,159.44,159.34,21.25492237]
[1723136357404,45.0,159.44,159.34,20.0]
[1723136357696,45.0,159.44,159.34,21.2549209]
[1723136358330,45.0,159.44,159.34,20.0]
[1723136358828,6.1841,159.48,159.36,34.41]
[1723136359009,25.60564867,159.5,159.36,34.41]
[1723136359010,15.7765,159.5,159.38,34.41]
[1723136359204,15.7765,159.5,159.39,20.0]
[1723136360225,9.82834742,159.53,159.4,21.6249]
[1723136360409,34.41,159.56,159.42,34.41]
[1723136360611,34.41,159.56,159.43,21.25407807]
[1723136361730,34.41,159.54,159.43,20.0]
[1723136362029,34.41,159.54,159.4,56.0349]
[1723136362030,34.41,159.54,159.41,20.0]
[1723136362924,34.41,159.52,159.41,20.0]
[1723136363128,34.41,159.5,159.41,20.0]
[1723136363327,45.0,159.49,159.41,20.0]
[1723136363714,45.0,159.49,159.36,15.1714]
[1723136363715,34.41,159.46,159.36,15.1714]
[1723136363944,46.48586595,159.45,159.36,15.1714]
[1723136364231,46.48586595,159.45,159.35,6.6028]
[1723136364607,34.41,159.48,159.36,34.41]
[1723136364810,6.3867,159.49,159.33,9.04284827]
[1723136364811,34.41,159.44,159.33,6.55647484]
[1723136365039,46.48586595,159.43,159.33,6.55647484]
[1723136365216,45.0,159.47,159.36,34.41]
[1723136365535,6.3867,159.49,159.37,1.25466336]
[1723136365536,45.0,159.48,159.37,1.25466336]
[1723136365733,45.0,159.48,159.33,7.81049695]
[1723136366519,45.0,159.48,159.34,65.0]
[1723136366848,1.48586595,159.47,159.33,6.55583359]
[1723136367046,45.0,159.48,159.33,6.55583359]
[1723136367332,1.48586595,159.47,159.33,6.55583359]
[1723136367713,7.75666595,159.47,159.33,6.55583359]
[1723136368021,6.3867,159.49,159.33,6.55583359]
[1723136368221,6.3867,159.49,159.34,20.0]
[1723136368222,12.6567,159.49,159.34,20.0]
[1723136368420,6.3867,159.49,159.35,1.2547594]
[1723136368626,6.3867,159.49,159.34,20.0]
[1723136368627,6.3867,159.49,159.36,1.2547559]
[1723136368832,6.3867,159.49,159.34,20.0]
[1723136369330,1.48586595,159.48,159.33,6.55583359]
[1723136369516,6.2716,159.45,159.33,6.55583359]
[1723136369724,7.75776595,159.44,159.33,6.55583359]
[1723136370115,40.9021,159.49,159.33,6.55583359]
[1723136370116,6.3867,159.49,159.33,6.55583359]
[1723136370434,6.2708,159.47,159.34,1.2548359]
[1723136370931,8.88630525,159.49,159.34,20.0]
[1723136371235,15.15640525,159.49,159.34,20.0]
[1723136371425,12.6568,159.49,159.34,20.0]
[1723136371623,6.2704,159.48,159.34,21.25467638]
[1723136371933,6.2708,159.47,159.34,20.0]
[1723136372118,6.2704,159.48,159.34,20.0]
[1723136372322,6.2708,159.47,159.34,20.0]
[1723136372632,6.2726,159.43,159.33,6.55583359]
[1723136372811,1.48586595,159.42,159.33,6.55583359]
[1723136373228,50.6817,159.41,159.24,21.7208]
[1723136373544,6.2742,159.39,159.3,6.55577829]
[1723136373749,7.76016595,159.38,159.24,21.7208]
[1723136374053,7.76016595,159.38,159.28,6.55588669]
[1723136374442,1.48586595,159.38,159.28,6.55588669]
[1723136375756,59.7349,159.37,159.28,6.55588669]
[1723136376053,1.48586595,159.36,159.2,21.6255]
[1723136376352,59.7349,159.37,159.23,6.55829213]
[1723136376730,6.2759,159.34,159.23,6.55829213]
[1723136376927,15.4949,159.37,159.24,1.25576776]
[1723136377262,15.4949,159.37,159.27,1.25555241]
[1723136377434,15.4949,159.37,159.23,6.55829213]
[1723136377629,15.4949,159.37,159.24,20.0]
[1723136378653,21.7696,159.37,159.24,20.0]
[1723136379448,21.7696,159.37,159.25,1.25548994]
[1723136379647,21.7696,159.37,159.24,20.0]
[1723136379953,6.2751,159.36,159.24,20.0]
[1723136380352,1.48586595,159.35,159.24,20.0]
[1723136380557,6.2751,159.36,159.25,1.25573441]
[1723136380767,15.4949,159.37,159.27,1.25564257]
[1723136381536,15.4949,159.37,159.24,21.25538499]
[1723136381855,21.7696,159.37,159.24,21.25554966]
[1723136382237,15.4949,159.37,159.24,21.25554966]
[1723136382835,15.4949,159.37,159.27,1.25542493]
[1723136383365,15.4949,159.37,159.24,21.25540005]
[1723136383573,15.4949,159.37,159.24,20.0]
[1723136383868,21.7696,159.37,159.24,20.0]
[1723136384057,15.4949,159.37,159.24,20.0]
[1723136384262,6.2754,159.36,159.24,20.0]
[1723136384440,6.2751,159.36,159.24,20.0]
[1723136385274,21.7696,159.37,159.24,20.0]
[1723136385460,21.7696,159.37,159.25,1.25559028]
[1723136385663,21.7696,159.37,159.24,20.0]
[1723136385855,21.7696,159.37,159.25,1.2555905]
[1723136386057,21.7696,159.37,159.24,20.0]
[1723136386546,21.7696,159.37,159.24,6.55765341]
[1723136386746,21.7696,159.37,159.25,21.25558749]
[1723136387462,6.02,159.36,159.25,20.0]
[1723136387668,6.02,159.36,159.24,6.55765341]
[1723136387669,1.48586595,159.35,159.24,6.55765341]
[1723136387854,1.48586595,159.35,159.2,21.6255]
[1723136387855,34.48,159.31,159.2,21.6255]
[1723136388053,34.48,159.31,159.21,6.55912406]
[1723136388747,34.48,159.31,159.2,21.6255]
[1723136389658,6.2759,159.34,159.2,21.6255]
[1723136389840,7.76216595,159.33,159.2,21.6255]
[1723136390046,1.48586595,159.33,159.2,21.6255]
[1723136390258,1.48586595,159.33,159.21,20.0]
[1723136390468,6.2777,159.3,159.21,20.0]
[1723136390678,1.48586595,159.29,159.2,21.6255]
[1723136390850,6.2777,159.3,159.2,21.6255]
[1723136391042,6.2774,159.3,159.2,21.6255]
[1723136391450,1.48586595,159.29,159.2,21.6255]
[1723136391653,17.18686595,159.29,159.16,29.10174489]